[Event "*** SCC Grand Prix: Titled Tuesday Blitz"]
[Site "Chess.com"]
[Date "2020.10.06"]
[Round "10"]
[White "NikolaGry"]
[Black "TigrVShlyape"]
[Result "0-1"]
[WhiteElo "2645"]
[BlackElo "2834"]
[TimeControl "180+1"]
[EndTime "11:58:11 PDT"]
[Termination "TigrVShlyape won on time"]

1. d4 {[%clk 0:03:00.9]} 1... f5 {[%clk 0:02:49.5]} 2. Nf3 {[%clk 0:02:56.2]}
2... Nf6 {[%clk 0:02:48.8]} 3. g3 {[%clk 0:02:54.6]} 3... g6 {[%clk 0:02:48.3]}
4. Bg2 {[%clk 0:02:54.4]} 4... Bg7 {[%clk 0:02:48.7]} 5. O-O {[%clk 0:02:53.9]}
5... d6 {[%clk 0:02:48.2]} 6. c4 {[%clk 0:02:52.6]} 6... O-O {[%clk 0:02:48.6]}
7. Nc3 {[%clk 0:02:52.4]} 7... c6 {[%clk 0:02:48.7]} 8. b3 {[%clk 0:02:50.6]}
8... a5 {[%clk 0:02:46.6]} 9. a3 {[%clk 0:02:49]} 9... Na6 {[%clk 0:02:47]} 10.
Qd3 {[%clk 0:02:36.3]} 10... Rb8 {[%clk 0:02:38.5]} 11. Bg5 {[%clk 0:02:30.7]}
11... Nc7 {[%clk 0:02:33.5]} 12. Rac1 {[%clk 0:02:20.6]} 12... b5 {[%clk
0:02:31.5]} 13. cxb5 {[%clk 0:02:19.4]} 13... cxb5 {[%clk 0:02:30.9]} 14. Bxf6
{[%clk 0:01:47.6]} 14... Bxf6 {[%clk 0:02:28.7]} 15. Nd2 {[%clk 0:01:47.7]}
15... Bd7 {[%clk 0:02:10.7]} 16. Nd5 {[%clk 0:01:39.3]} 16... Nxd5 {[%clk
0:02:09]} 17. Bxd5+ {[%clk 0:01:39.2]} 17... Kh8 {[%clk 0:02:07.9]} 18. Bc6
{[%clk 0:01:36.7]} 18... b4 {[%clk 0:01:34.6]} 19. a4 {[%clk 0:01:25.4]} 19...
f4 {[%clk 0:01:34.3]} 20. gxf4 {[%clk 0:00:43.1]} 20... Rc8 {[%clk 0:01:30.3]}
21. Bxd7 {[%clk 0:00:35.7]} 21... Qxd7 {[%clk 0:01:30.1]} 22. Qe4 {[%clk
0:00:27.8]} 22... Rc3 {[%clk 0:01:26.7]} 23. Rb1 {[%clk 0:00:16.6]} 23... Rfc8
{[%clk 0:01:22.7]} 24. e3 {[%clk 0:00:14.2]} 24... Rc2 {[%clk 0:01:15.4]} 25.
Rfd1 {[%clk 0:00:13.9]} 25... R8c3 {[%clk 0:01:07.8]} 26. Qg2 {[%clk 0:00:13]}
26... d5 {[%clk 0:01:01.3]} 27. Nf3 {[%clk 0:00:12.5]} 27... Qf5 {[%clk
0:01:00.3]} 28. h3 {[%clk 0:00:12]} 28... e6 {[%clk 0:00:59.2]} 29. Ne5 {[%clk
0:00:11.5]} 29... Bh4 {[%clk 0:00:57.7]} 30. Rf1 {[%clk 0:00:09.4]} 30... Re2
{[%clk 0:00:55.2]} 31. Nf3 {[%clk 0:00:08.8]} 31... Bf6 {[%clk 0:00:54.2]} 32.
Rbc1 {[%clk 0:00:08.5]} 32... Kg7 {[%clk 0:00:51.1]} 33. Rfd1 {[%clk 0:00:06.4]}
33... Rec2 {[%clk 0:00:47.6]} 34. Rb1 {[%clk 0:00:06.1]} 34... Qe4 {[%clk
0:00:43.9]} 35. Ne5 {[%clk 0:00:05.7]} 35... Qxg2+ {[%clk 0:00:42.1]} 36. Kxg2
{[%clk 0:00:06]} 36... Rxe3 {[%clk 0:00:42.5]} 37. Rbc1 {[%clk 0:00:06.2]} 37...
Rec3 {[%clk 0:00:39.8]} 38. Rxc2 {[%clk 0:00:06.1]} 38... Rxc2 {[%clk
0:00:40.1]} 39. Rd3 {[%clk 0:00:06.4]} 39... Bh4 {[%clk 0:00:38.3]} 40. Rf3
{[%clk 0:00:06.1]} 40... h5 {[%clk 0:00:36.5]} 41. Kg1 {[%clk 0:00:05.4]} 41...
Kf6 {[%clk 0:00:36.3]} 42. Kg2 {[%clk 0:00:05]} 42... Kf5 {[%clk 0:00:36.7]} 43.
Kg1 {[%clk 0:00:05.1]} 43... Rc3 {[%clk 0:00:36.2]} 44. Kg2 {[%clk 0:00:03.9]}
44... Rc2 {[%clk 0:00:35.2]} 45. Kg1 {[%clk 0:00:04]} 45... Bd8 {[%clk
0:00:34.3]} 46. Kg2 {[%clk 0:00:03.4]} 46... Bb6 {[%clk 0:00:33.3]} 47. Rg3
{[%clk 0:00:03.6]} 47... Bxd4 {[%clk 0:00:32.6]} 48. Rg5+ {[%clk 0:00:03]} 48...
Kxf4 {[%clk 0:00:32.2]} 0-1

[Event "*** SCC Grand Prix: Titled Tuesday Blitz"]
[Site "Chess.com"]
[Date "2020.10.06"]
[Round "10"]
[White "UmarovSabir"]
[Black "gui_borba"]
[Result "0-1"]
[WhiteElo "2375"]
[BlackElo "2499"]
[TimeControl "180+1"]
[EndTime "11:58:13 PDT"]
[Termination "gui_borba won on time"]

1. e4 {[%clk 0:03:00.2]} 1... c6 {[%clk 0:02:58.2]} 2. d4 {[%clk 0:02:58.3]}
2... d5 {[%clk 0:02:59.1]} 3. Bd3 {[%clk 0:02:56.6]} 3... dxe4 {[%clk
0:02:56.5]} 4. Bxe4 {[%clk 0:02:55.3]} 4... Nf6 {[%clk 0:02:56.7]} 5. Bf3 {[%clk
0:02:54.9]} 5... Bf5 {[%clk 0:02:57.1]} 6. Ne2 {[%clk 0:02:53.5]} 6... e6 {[%clk
0:02:57.4]} 7. O-O {[%clk 0:02:51.5]} 7... Nbd7 {[%clk 0:02:57.7]} 8. Nd2 {[%clk
0:02:45.4]} 8... Be7 {[%clk 0:02:55.9]} 9. Nc4 {[%clk 0:02:41.8]} 9... O-O
{[%clk 0:02:55.2]} 10. Bf4 {[%clk 0:02:38.2]} 10... Nb6 {[%clk 0:02:44]} 11. Ne5
{[%clk 0:02:34.5]} 11... Be4 {[%clk 0:02:32.5]} 12. Bxe4 {[%clk 0:02:27.3]}
12... Nxe4 {[%clk 0:02:33.4]} 13. Qd3 {[%clk 0:02:27.1]} 13... Nf6 {[%clk
0:02:31.5]} 14. Rad1 {[%clk 0:02:04.4]} 14... Nbd5 {[%clk 0:02:22.9]} 15. Bg3
{[%clk 0:01:58.7]} 15... Qa5 {[%clk 0:02:20.8]} 16. a3 {[%clk 0:01:55.2]} 16...
Rfd8 {[%clk 0:02:08.6]} 17. c4 {[%clk 0:01:47.8]} 17... Nb6 {[%clk 0:02:03.7]}
18. Qf3 {[%clk 0:01:04.6]} 18... Nbd7 {[%clk 0:01:45.5]} 19. b4 {[%clk
0:00:56.4]} 19... Qa6 {[%clk 0:01:41.6]} 20. h4 {[%clk 0:00:33.2]} 20... Nxe5
{[%clk 0:01:31.1]} 21. dxe5 {[%clk 0:00:32.2]} 21... Ne8 {[%clk 0:01:31.2]} 22.
c5 {[%clk 0:00:30]} 22... Nc7 {[%clk 0:01:25.1]} 23. Rd6 {[%clk 0:00:28.7]}
23... Bxd6 {[%clk 0:01:14.9]} 24. exd6 {[%clk 0:00:25.6]} 24... Nd5 {[%clk
0:01:15.8]} 25. h5 {[%clk 0:00:23.4]} 25... b6 {[%clk 0:01:10.5]} 26. h6 {[%clk
0:00:21.5]} 26... bxc5 {[%clk 0:01:04.4]} 27. Qg4 {[%clk 0:00:20.3]} 27... g6
{[%clk 0:01:00.5]} 28. bxc5 {[%clk 0:00:19.9]} 28... Qd3 {[%clk 0:00:58.5]} 29.
Nf4 {[%clk 0:00:17.3]} 29... Qf5 {[%clk 0:00:54.2]} 30. Nxd5 {[%clk 0:00:15.9]}
30... exd5 {[%clk 0:00:45.1]} 31. Qd4 {[%clk 0:00:10.4]} 31... f6 {[%clk
0:00:43.2]} 32. Qa4 {[%clk 0:00:09.7]} 32... Qd7 {[%clk 0:00:32.8]} 33. Qd4
{[%clk 0:00:04.9]} 33... Kf7 {[%clk 0:00:32.1]} 34. Bh4 {[%clk 0:00:04.3]} 34...
Qf5 {[%clk 0:00:25.7]} 35. Qa4 {[%clk 0:00:02]} 35... Qd7 {[%clk 0:00:20.5]} 36.
Qd4 {[%clk 0:00:01.7]} 36... g5 {[%clk 0:00:21.1]} 37. Bg3 {[%clk 0:00:01.3]}
37... Kg6 {[%clk 0:00:20.3]} 38. Qd3+ {[%clk 0:00:01.4]} 38... Qf5 {[%clk
0:00:20.7]} 39. Qa6 {[%clk 0:00:01.8]} 39... Qd7 {[%clk 0:00:19.1]} 0-1

[Event "*** SCC Grand Prix: Titled Tuesday Blitz"]
[Site "Chess.com"]
[Date "2020.10.06"]
[Round "10"]
[White "Manukyan_Artak"]
[Black "tmr88"]
[Result "1-0"]
[WhiteElo "2290"]
[BlackElo "2080"]
[TimeControl "180+1"]
[EndTime "11:58:15 PDT"]
[Termination "Manukyan_Artak won on time"]

1. e4 {[%clk 0:02:33.8]} 1... e5 {[%clk 0:02:56.2]} 2. Nf3 {[%clk 0:02:31.7]}
2... Nc6 {[%clk 0:02:56.7]} 3. d4 {[%clk 0:02:32.6]} 3... exd4 {[%clk
0:02:55.3]} 4. Nxd4 {[%clk 0:02:33.5]} 4... Nf6 {[%clk 0:02:55]} 5. Nxc6 {[%clk
0:02:33]} 5... bxc6 {[%clk 0:02:55.9]} 6. e5 {[%clk 0:02:33.8]} 6... Qe7 {[%clk
0:02:55]} 7. Qe2 {[%clk 0:02:33.3]} 7... Nd5 {[%clk 0:02:55.5]} 8. c4 {[%clk
0:02:34.2]} 8... Ba6 {[%clk 0:02:54.2]} 9. b3 {[%clk 0:02:35.1]} 9... g5 {[%clk
0:02:50]} 10. g3 {[%clk 0:02:34.8]} 10... Bg7 {[%clk 0:02:49.4]} 11. Bg2 {[%clk
0:02:35]} 11... O-O-O {[%clk 0:02:34.9]} 12. Bb2 {[%clk 0:02:34.3]} 12... Rde8
{[%clk 0:02:28.7]} 13. O-O {[%clk 0:02:33.7]} 13... Bxe5 {[%clk 0:02:22.8]} 14.
Qxe5 {[%clk 0:02:32.3]} 14... Qxe5 {[%clk 0:02:23.7]} 15. Bxe5 {[%clk
0:02:32.8]} 15... Rxe5 {[%clk 0:02:23.2]} 16. cxd5 {[%clk 0:02:33.7]} 16... Bxf1
{[%clk 0:02:22.3]} 17. Kxf1 {[%clk 0:02:34.6]} 17... cxd5 {[%clk 0:02:22.1]} 18.
Nc3 {[%clk 0:02:35.2]} 18... c6 {[%clk 0:02:20.9]} 19. Rc1 {[%clk 0:02:32.3]}
19... Kd8 {[%clk 0:02:21.2]} 20. b4 {[%clk 0:02:31.5]} 20... h5 {[%clk
0:02:19.8]} 21. b5 {[%clk 0:02:03.2]} 21... g4 {[%clk 0:02:11.9]} 22. a4 {[%clk
0:01:51.8]} 22... h4 {[%clk 0:02:10.2]} 23. Nd1 {[%clk 0:01:22.9]} 23... hxg3
{[%clk 0:02:04.9]} 24. hxg3 {[%clk 0:01:22.4]} 24... Kc7 {[%clk 0:01:58.2]} 25.
Ne3 {[%clk 0:01:20.6]} 25... Kd6 {[%clk 0:01:37.3]} 26. Nxg4 {[%clk 0:01:13.9]}
26... Rg5 {[%clk 0:01:31.9]} 27. Ne3 {[%clk 0:01:10.9]} 27... Rgh5 {[%clk
0:01:03.6]} 28. Kg1 {[%clk 0:01:07.6]} 28... Re8 {[%clk 0:00:50.4]} 29. Bf3
{[%clk 0:00:46.7]} 29... Rhe5 {[%clk 0:00:44.9]} 30. Rd1 {[%clk 0:00:43.3]}
30... Rg5 {[%clk 0:00:35.4]} 31. g4 {[%clk 0:00:36.8]} 31... Kc7 {[%clk
0:00:28.4]} 32. Kg2 {[%clk 0:00:35.8]} 32... Rb8 {[%clk 0:00:21.4]} 33. Kg3
{[%clk 0:00:32.6]} 33... Rbg8 {[%clk 0:00:17.9]} 34. Kf4 {[%clk 0:00:31.8]}
34... R5g6 {[%clk 0:00:16.9]} 35. Nf5 {[%clk 0:00:28.4]} 35... Rf6 {[%clk
0:00:15.9]} 36. Rc1 {[%clk 0:00:26.4]} 36... Kb6 {[%clk 0:00:11.9]} 37. Ke5
{[%clk 0:00:20.5]} 37... Re6+ {[%clk 0:00:11.8]} 38. Kf4 {[%clk 0:00:20]} 38...
Rf6 {[%clk 0:00:11.5]} 39. Be2 {[%clk 0:00:16.4]} 39... c5 {[%clk 0:00:09.5]}
40. Rd1 {[%clk 0:00:15.7]} 40... d4 {[%clk 0:00:09.2]} 41. Bc4 {[%clk
0:00:15.7]} 41... Rf8 {[%clk 0:00:01.7]} 42. g5 {[%clk 0:00:13.4]} 42... Rg6
{[%clk 0:00:02.2]} 43. Kg4 {[%clk 0:00:11]} 1-0

[Event "*** SCC Grand Prix: Titled Tuesday Blitz"]
[Site "Chess.com"]
[Date "2020.10.06"]
[Round "10"]
[White "Smirnov_Pavel"]
[Black "rasmussvane"]
[Result "1-0"]
[WhiteElo "2825"]
[BlackElo "2900"]
[TimeControl "180+1"]
[EndTime "11:58:18 PDT"]
[Termination "Smirnov_Pavel won by checkmate"]

1. d4 {[%clk 0:03:00.9]} 1... d5 {[%clk 0:02:59.8]} 2. c4 {[%clk 0:03:01.8]}
2... e6 {[%clk 0:02:59.9]} 3. Nf3 {[%clk 0:03:01.6]} 3... a6 {[%clk 0:03:00.2]}
4. e3 {[%clk 0:03:00.3]} 4... Nf6 {[%clk 0:03:00.3]} 5. Nc3 {[%clk 0:02:59.9]}
5... dxc4 {[%clk 0:03:00.3]} 6. Bxc4 {[%clk 0:03:00.8]} 6... b5 {[%clk
0:03:00.5]} 7. Bb3 {[%clk 0:02:59.4]} 7... Bb7 {[%clk 0:03:00.6]} 8. O-O {[%clk
0:02:59.8]} 8... c5 {[%clk 0:02:54.3]} 9. e4 {[%clk 0:03:00.1]} 9... cxd4 {[%clk
0:02:12.3]} 10. Nxd4 {[%clk 0:03:01]} 10... Nc6 {[%clk 0:02:12.2]} 11. Nxc6
{[%clk 0:03:00.1]} 11... Bxc6 {[%clk 0:02:13.1]} 12. Qe2 {[%clk 0:02:59.5]}
12... Bc5 {[%clk 0:02:08.8]} 13. e5 {[%clk 0:02:48.8]} 13... Nd7 {[%clk
0:02:02.6]} 14. Ne4 {[%clk 0:02:48.6]} 14... Be7 {[%clk 0:01:55.3]} 15. Rd1
{[%clk 0:02:35.7]} 15... O-O {[%clk 0:01:55.6]} 16. Bf4 {[%clk 0:02:36.2]} 16...
Qb6 {[%clk 0:01:51.9]} 17. Rac1 {[%clk 0:02:33.3]} 17... Rfd8 {[%clk 0:01:43.1]}
18. Nd6 {[%clk 0:02:22.9]} 18... a5 {[%clk 0:00:39.5]} 19. Nxf7 {[%clk
0:01:26.8]} 19... Kxf7 {[%clk 0:00:30.6]} 20. Qh5+ {[%clk 0:01:26.8]} 20... Kg8
{[%clk 0:00:30.5]} 21. Bxe6+ {[%clk 0:01:26.9]} 21... Kh8 {[%clk 0:00:30.8]} 22.
Rxc6 {[%clk 0:01:05.3]} 22... Qxc6 {[%clk 0:00:28.7]} 23. Bd5 {[%clk 0:01:05.9]}
23... Qa6 {[%clk 0:00:18]} 24. Bxa8 {[%clk 0:01:04.8]} 24... Qxa8 {[%clk
0:00:18.9]} 25. h3 {[%clk 0:01:00]} 25... Nf8 {[%clk 0:00:17]} 26. Re1 {[%clk
0:00:56.7]} 26... Qd5 {[%clk 0:00:16.6]} 27. Be3 {[%clk 0:00:53.4]} 27... Qe6
{[%clk 0:00:15.8]} 28. Qe2 {[%clk 0:00:49.4]} 28... b4 {[%clk 0:00:10.1]} 29.
Qb5 {[%clk 0:00:44.5]} 29... Qd5 {[%clk 0:00:09.3]} 30. Qxd5 {[%clk 0:00:23.7]}
30... Rxd5 {[%clk 0:00:10.2]} 31. f4 {[%clk 0:00:24.1]} 31... Kg8 {[%clk
0:00:10]} 32. Kf2 {[%clk 0:00:23.5]} 32... Kf7 {[%clk 0:00:07.2]} 33. Kf3 {[%clk
0:00:24.4]} 33... Rd7 {[%clk 0:00:03.8]} 34. f5 {[%clk 0:00:23.3]} 34... Ke8
{[%clk 0:00:04.2]} 35. Ke4 {[%clk 0:00:22.9]} 35... Rc7 {[%clk 0:00:04.5]} 36.
Bb6 {[%clk 0:00:20.3]} 36... Rc2 {[%clk 0:00:04.1]} 37. e6 {[%clk 0:00:19.2]}
37... Rxb2 {[%clk 0:00:03.7]} 38. Rc1 {[%clk 0:00:19.1]} 38... Bd8 {[%clk
0:00:01.8]} 39. Rc8 {[%clk 0:00:17.5]} 39... Rd2 {[%clk 0:00:02.1]} 40. Bd4
{[%clk 0:00:16.8]} 40... g6 {[%clk 0:00:01.5]} 41. g4 {[%clk 0:00:15.2]} 41...
g5 {[%clk 0:00:01.8]} 42. Bc5 {[%clk 0:00:13]} 42... a4 {[%clk 0:00:01.7]} 43.
e7 {[%clk 0:00:12.4]} 43... b3 {[%clk 0:00:01.6]} 44. exf8=Q+ {[%clk 0:00:12]}
44... Kd7 {[%clk 0:00:02.3]} 45. Qxd8# {[%clk 0:00:12.2]} 1-0

[Event "*** SCC Grand Prix: Titled Tuesday Blitz"]
[Site "Chess.com"]
[Date "2020.10.06"]
[Round "10"]
[White "Msb2"]
[Black "Sibelephant"]
[Result "0-1"]
[WhiteElo "2931"]
[BlackElo "3101"]
[TimeControl "180+1"]
[EndTime "11:58:19 PDT"]
[Termination "Sibelephant won by resignation"]

1. d4 {[%clk 0:03:00.9]} 1... d5 {[%clk 0:02:59.7]} 2. c4 {[%clk 0:03:00.9]}
2... c6 {[%clk 0:03:00.3]} 3. Nc3 {[%clk 0:03:00.6]} 3... Nf6 {[%clk 0:03:00.7]}
4. cxd5 {[%clk 0:02:57]} 4... cxd5 {[%clk 0:03:00.6]} 5. Bf4 {[%clk 0:02:57.6]}
5... Nc6 {[%clk 0:03:00.6]} 6. e3 {[%clk 0:02:58.1]} 6... a6 {[%clk 0:03:00.6]}
7. Be2 {[%clk 0:02:56.3]} 7... Bf5 {[%clk 0:02:58.1]} 8. Nf3 {[%clk 0:02:47.2]}
8... e6 {[%clk 0:02:56.7]} 9. Qb3 {[%clk 0:02:47.2]} 9... Ra7 {[%clk 0:02:49.8]}
10. O-O {[%clk 0:02:37.2]} 10... Be7 {[%clk 0:02:49.6]} 11. Rfc1 {[%clk
0:02:35.7]} 11... Nd7 {[%clk 0:02:49.3]} 12. Na4 {[%clk 0:01:51.2]} 12... g5
{[%clk 0:02:47.3]} 13. Be5 {[%clk 0:01:51.5]} 13... Rg8 {[%clk 0:02:45]} 14. Bg3
{[%clk 0:01:44.4]} 14... h5 {[%clk 0:02:43.7]} 15. h3 {[%clk 0:01:33.4]} 15...
h4 {[%clk 0:02:32]} 16. Bh2 {[%clk 0:01:33.7]} 16... g4 {[%clk 0:02:31]} 17.
hxg4 {[%clk 0:01:33.8]} 17... Bxg4 {[%clk 0:02:31.5]} 18. Kh1 {[%clk 0:01:32.9]}
18... Kf8 {[%clk 0:02:01]} 19. Qd1 {[%clk 0:01:26.9]} 19... h3 {[%clk
0:01:45.6]} 20. gxh3 {[%clk 0:01:03.8]} 20... Bxh3 {[%clk 0:01:45.3]} 21. Bf1
{[%clk 0:01:04.2]} 21... Bg4 {[%clk 0:01:44.3]} 22. Be2 {[%clk 0:01:04.7]} 22...
Nf6 {[%clk 0:01:37.4]} 23. Nd2 {[%clk 0:01:02.3]} 23... Bd6 {[%clk 0:01:33.2]}
24. f4 {[%clk 0:00:50.8]} 24... Ne7 {[%clk 0:01:21.3]} 25. Nf1 {[%clk 0:00:36]}
25... Ne4 {[%clk 0:01:18]} 26. Qe1 {[%clk 0:00:28.2]} 26... Bxe2 {[%clk
0:00:59.8]} 27. Qxe2 {[%clk 0:00:29.1]} 27... Nf5 {[%clk 0:01:00.4]} 28. Nc3
{[%clk 0:00:22.4]} 28... Nf6 {[%clk 0:00:51.5]} 29. Nd1 {[%clk 0:00:18.9]} 29...
Ng4 {[%clk 0:00:43.2]} 30. Rc2 {[%clk 0:00:14.3]} 30... Rg6 {[%clk 0:00:36.6]}
31. Qf3 {[%clk 0:00:14.2]} 31... Qh4 {[%clk 0:00:36.1]} 32. Rg2 {[%clk
0:00:11.7]} 32... Ke7 {[%clk 0:00:35.5]} 33. Rc1 {[%clk 0:00:11.8]} 33... Ra8
{[%clk 0:00:35.5]} 34. Kg1 {[%clk 0:00:11]} 34... Rag8 {[%clk 0:00:32]} 35. Bg3
{[%clk 0:00:10.1]} 35... Qh3 {[%clk 0:00:31.9]} 36. Nf2 {[%clk 0:00:06.7]} 36...
Nxf2 {[%clk 0:00:28]} 37. Kxf2 {[%clk 0:00:07.6]} 37... Nh4 {[%clk 0:00:08.1]}
38. Rh2 {[%clk 0:00:03.3]} 38... Qxh2+ {[%clk 0:00:07.5]} 39. Nxh2 {[%clk
0:00:03.9]} 39... Nxf3 {[%clk 0:00:07.6]} 40. Nxf3 {[%clk 0:00:03.3]} 40... Rxg3
{[%clk 0:00:07.7]} 41. Ne5 {[%clk 0:00:03.3]} 41... Rg2+ {[%clk 0:00:07.6]} 42.
Kf1 {[%clk 0:00:03.8]} 42... Rg1+ {[%clk 0:00:07.4]} 0-1

[Event "*** SCC Grand Prix: Titled Tuesday Blitz"]
[Site "Chess.com"]
[Date "2020.10.06"]
[Round "10"]
[White "Snegokhod"]
[Black "shnitez"]
[Result "1-0"]
[WhiteElo "2423"]
[BlackElo "2539"]
[TimeControl "180+1"]
[EndTime "11:58:19 PDT"]
[Termination "Snegokhod won on time"]

1. e4 {[%clk 0:03:00.9]} 1... c5 {[%clk 0:02:59.6]} 2. Nf3 {[%clk 0:03:00.5]}
2... e6 {[%clk 0:03:00]} 3. d3 {[%clk 0:03:00.1]} 3... Nc6 {[%clk 0:02:59.9]} 4.
g3 {[%clk 0:02:59.7]} 4... g6 {[%clk 0:03:00.4]} 5. Bg2 {[%clk 0:02:59.8]} 5...
Bg7 {[%clk 0:03:01]} 6. O-O {[%clk 0:03:00.4]} 6... Nge7 {[%clk 0:03:01.1]} 7.
Re1 {[%clk 0:03:00.6]} 7... O-O {[%clk 0:03:01.2]} 8. e5 {[%clk 0:03:00.3]} 8...
b6 {[%clk 0:02:50.6]} 9. Nc3 {[%clk 0:02:44]} 9... Bb7 {[%clk 0:02:45.6]} 10. h4
{[%clk 0:02:43.5]} 10... d6 {[%clk 0:02:34.8]} 11. exd6 {[%clk 0:02:41.6]} 11...
Qxd6 {[%clk 0:02:35.7]} 12. Ne4 {[%clk 0:02:38.5]} 12... Qd7 {[%clk 0:02:18.1]}
13. h5 {[%clk 0:02:34.1]} 13... Nd5 {[%clk 0:01:58.7]} 14. h6 {[%clk 0:02:33.4]}
14... Bh8 {[%clk 0:01:58.2]} 15. a3 {[%clk 0:02:24.3]} 15... Rac8 {[%clk
0:01:55.8]} 16. Rb1 {[%clk 0:02:13.3]} 16... Nd4 {[%clk 0:01:53.6]} 17. Nh2
{[%clk 0:02:07.3]} 17... Nf6 {[%clk 0:01:43]} 18. c3 {[%clk 0:02:02.5]} 18...
Nf5 {[%clk 0:01:21.4]} 19. Qe2 {[%clk 0:01:50]} 19... Nxe4 {[%clk 0:01:13.3]}
20. dxe4 {[%clk 0:01:49.5]} 20... Ne7 {[%clk 0:01:08.6]} 21. Rd1 {[%clk
0:01:43.8]} 21... Qc6 {[%clk 0:01:03.3]} 22. Bf4 {[%clk 0:01:39.6]} 22... Rfd8
{[%clk 0:01:00.9]} 23. Bg5 {[%clk 0:01:38.3]} 23... Qe8 {[%clk 0:00:57.5]} 24.
Ng4 {[%clk 0:01:36.4]} 24... Rxd1+ {[%clk 0:00:51.2]} 25. Rxd1 {[%clk
0:01:34.9]} 25... Rd8 {[%clk 0:00:52.1]} 26. Nf6+ {[%clk 0:01:28.8]} 26... Bxf6
{[%clk 0:00:50.8]} 27. Bxf6 {[%clk 0:01:29.2]} 27... Rxd1+ {[%clk 0:00:48.7]}
28. Qxd1 {[%clk 0:01:29]} 28... Nc6 {[%clk 0:00:43]} 29. Qd6 {[%clk 0:01:26.1]}
29... Qf8 {[%clk 0:00:34.8]} 30. e5 {[%clk 0:01:17]} 30... Qc8 {[%clk
0:00:27.8]} 31. b4 {[%clk 0:00:57.3]} 31... cxb4 {[%clk 0:00:27.6]} 32. cxb4
{[%clk 0:00:55.6]} 32... a6 {[%clk 0:00:21]} 33. Bg5 {[%clk 0:00:42.3]} 33...
Kh8 {[%clk 0:00:15.7]} 34. Be3 {[%clk 0:00:39]} 34... b5 {[%clk 0:00:13.9]} 35.
Bb6 {[%clk 0:00:38.1]} 35... Kg8 {[%clk 0:00:13.9]} 36. Bc5 {[%clk 0:00:33.9]}
36... Qd8 {[%clk 0:00:12.4]} 37. f4 {[%clk 0:00:20.7]} 37... Qc8 {[%clk
0:00:09.5]} 38. Kh2 {[%clk 0:00:20]} 38... Qd8 {[%clk 0:00:09.6]} 39. Kh3 {[%clk
0:00:19.5]} 39... Qc8 {[%clk 0:00:09.8]} 40. g4 {[%clk 0:00:19.5]} 40... Qe8
{[%clk 0:00:09.8]} 41. Kg3 {[%clk 0:00:17.9]} 41... Qc8 {[%clk 0:00:09.6]} 42.
Be4 {[%clk 0:00:17.5]} 42... Qe8 {[%clk 0:00:09.3]} 43. f5 {[%clk 0:00:17.4]}
43... exf5 {[%clk 0:00:06.7]} 44. gxf5 {[%clk 0:00:17.7]} 44... Ba8 {[%clk
0:00:05]} 45. e6 {[%clk 0:00:17.3]} 45... gxf5 {[%clk 0:00:04]} 46. exf7+ {[%clk
0:00:16.8]} 46... Kxf7 {[%clk 0:00:02]} 47. Bd5+ {[%clk 0:00:16.7]} 1-0

[Event "*** SCC Grand Prix: Titled Tuesday Blitz"]
[Site "Chess.com"]
[Date "2020.10.06"]
[Round "10"]
[White "Sergienko_Sergey"]
[Black "chessdjw"]
[Result "0-1"]
[WhiteElo "2393"]
[BlackElo "2647"]
[TimeControl "180+1"]
[EndTime "11:58:20 PDT"]
[Termination "chessdjw won on time"]

1. e4 {[%clk 0:02:59.6]} 1... c5 {[%clk 0:02:59.8]} 2. Nf3 {[%clk 0:02:58.6]}
2... d6 {[%clk 0:03:00.3]} 3. Bb5+ {[%clk 0:02:57.8]} 3... Nd7 {[%clk
0:02:59.8]} 4. c3 {[%clk 0:02:56.2]} 4... Nf6 {[%clk 0:02:56.3]} 5. Qe2 {[%clk
0:02:52.3]} 5... a6 {[%clk 0:02:54.9]} 6. Ba4 {[%clk 0:02:51.5]} 6... b5 {[%clk
0:02:54.1]} 7. Bc2 {[%clk 0:02:51.3]} 7... Bb7 {[%clk 0:02:53]} 8. d4 {[%clk
0:02:47.3]} 8... e6 {[%clk 0:02:52.8]} 9. O-O {[%clk 0:02:46.4]} 9... Be7 {[%clk
0:02:52.8]} 10. Re1 {[%clk 0:02:43.9]} 10... Rc8 {[%clk 0:02:49.9]} 11. Bd3
{[%clk 0:02:38.9]} 11... Qc7 {[%clk 0:02:42.3]} 12. Nbd2 {[%clk 0:02:37.4]}
12... O-O {[%clk 0:02:03.9]} 13. Nf1 {[%clk 0:02:36.4]} 13... Rfe8 {[%clk
0:02:03.1]} 14. Ng3 {[%clk 0:02:35.6]} 14... Bf8 {[%clk 0:01:58.3]} 15. Bd2
{[%clk 0:02:19.8]} 15... g6 {[%clk 0:01:51.4]} 16. Rad1 {[%clk 0:02:14.7]} 16...
Bg7 {[%clk 0:01:50.7]} 17. h3 {[%clk 0:01:59.3]} 17... Nb6 {[%clk 0:01:30.5]}
18. Bg5 {[%clk 0:01:45.9]} 18... Na4 {[%clk 0:01:24.8]} 19. Qd2 {[%clk
0:01:25.2]} 19... e5 {[%clk 0:00:49]} 20. Bh6 {[%clk 0:00:58.3]} 20... Bxh6
{[%clk 0:00:47.5]} 21. Qxh6 {[%clk 0:00:57.8]} 21... Qe7 {[%clk 0:00:48]} 22.
Qd2 {[%clk 0:00:52.5]} 22... Kg7 {[%clk 0:00:42.5]} 23. Bb1 {[%clk 0:00:47.4]}
23... h6 {[%clk 0:00:41.1]} 24. Nh4 {[%clk 0:00:33.1]} 24... Kh7 {[%clk
0:00:32]} 25. f4 {[%clk 0:00:27.7]} 25... Nxe4 {[%clk 0:00:26.5]} 26. Nxe4
{[%clk 0:00:22]} 26... Bxe4 {[%clk 0:00:21.3]} 27. Bxe4 {[%clk 0:00:19.7]} 27...
Qxh4 {[%clk 0:00:21.5]} 28. f5 {[%clk 0:00:16.5]} 28... g5 {[%clk 0:00:17.7]}
29. f6+ {[%clk 0:00:13.3]} 29... Kh8 {[%clk 0:00:17.9]} 30. Bb1 {[%clk
0:00:12.9]} 30... Qf4 {[%clk 0:00:11.7]} 31. Qd3 {[%clk 0:00:10.4]} 31... e4
{[%clk 0:00:11.6]} 32. Rxe4 {[%clk 0:00:09.4]} 32... Rxe4 {[%clk 0:00:11.9]} 33.
Qxe4 {[%clk 0:00:09.4]} 33... Qxe4 {[%clk 0:00:12.5]} 34. Bxe4 {[%clk
0:00:09.2]} 34... Nxb2 {[%clk 0:00:13.4]} 35. Rd2 {[%clk 0:00:06.3]} 35... Nc4
{[%clk 0:00:13.1]} 36. Rf2 {[%clk 0:00:06.1]} 36... cxd4 {[%clk 0:00:11.9]} 37.
cxd4 {[%clk 0:00:05.6]} 37... Kg8 {[%clk 0:00:12.5]} 38. Bd5 {[%clk 0:00:05.2]}
38... Nb6 {[%clk 0:00:12.6]} 39. Bb3 {[%clk 0:00:03.6]} 39... a5 {[%clk
0:00:12.7]} 40. Re2 {[%clk 0:00:02.6]} 40... a4 {[%clk 0:00:12.9]} 41. Bc2
{[%clk 0:00:02.6]} 41... Nd5 {[%clk 0:00:13.3]} 42. Bf5 {[%clk 0:00:02.3]} 42...
Rc1+ {[%clk 0:00:11.4]} 43. Kh2 {[%clk 0:00:01.4]} 43... Nxf6 {[%clk 0:00:12.1]}
0-1